fUST/lending_fUST_20240908
["ID","MTS","AMOUNT","RATE_DAILY","PERIOD"]
[337556285,1725810650925,-6539.58,0.00054794,120]
[337556286,1725810650934,-500.0,0.00054794,120]
[337556287,1725810650944,-6539.58,0.00054794,120]
[337556288,1725810650955,-6539.58,0.00054794,120]
[337556289,1725810650967,-6539.58,0.00054794,120]
[337556290,1725810650978,-6539.58,0.00054794,120]
[337556291,1725810650988,-6539.58,0.00054794,120]
[337556292,1725810650998,-6539.58,0.00054794,120]
[337556293,1725810651008,-500.0,0.00054794,120]
[337556294,1725810651018,-6539.58,0.00054794,120]
[337556295,1725810651029,-6539.58,0.00054794,120]
[337556296,1725810651040,-6539.58,0.00054794,120]
[337556297,1725810651050,-6539.58,0.00054794,120]
[337556298,1725810651061,-6539.58,0.00054794,120]
[337556299,1725810651071,-6539.58,0.00054794,120]
[337556300,1725810651081,-6539.8055083,0.00054794,120]
[337556301,1725810651091,-500.0,0.00054794,120]
[337556302,1725810651101,-847.76,0.00054794,30]
[337556303,1725810651111,-500.0,0.00054794,120]
[337556304,1725810651121,-500.0,0.00054794,120]
[337556305,1725810651133,-500.0,0.00054794,120]
[337556306,1725810651144,-500.0,0.00054794,120]
[337556307,1725810651155,-151.0,0.00054794,120]
[337556308,1725810651165,-1009.48,0.00054794,120]
[337556309,1725810651176,-151.0,0.00054794,120]
[337556310,1725810651188,-151.0,0.00054794,120]
[337556311,1725810651201,-3225.59,0.00054794,120]
[337556312,1725810651212,-1093.08,0.00054794,120]
[337556313,1725810651222,-1047.16,0.00054794,120]
[337556314,1725810651233,-500.0,0.00054794,120]
[337556315,1725810651243,-801.67,0.00054794,120]
[337556316,1725810651253,-500.0,0.00054794,120]
[337556317,1725810651263,-500.0,0.00054794,120]
[337556318,1725810651273,-500.0,0.00054794,120]
[337556319,1725810651283,-1420.25,0.00054794,120]
[337556320,1725810651293,-500.0,0.00054794,120]
[337556321,1725810651304,-500.0,0.00054794,120]
[337556322,1725810651314,-617.96,0.00054794,120]
[337556323,1725810651323,-500.0,0.00054794,120]
[337556324,1725810651333,-5403.1,0.00054794,120]
[337556325,1725810651342,-500.0,0.00054794,120]
[337556326,1725810651352,-1046.2,0.00054794,120]
[337556327,1725810651362,-713.11,0.00054794,120]
[337556328,1725810651372,-500.0,0.00054794,120]
[337556329,1725810651383,-407.3402149,0.00054794,120]
[337556330,1725810651394,-500.0,0.00054794,120]
[337556331,1725810651406,-500.0,0.00054794,120]
[337556332,1725810651417,-500.0,0.00054794,120]
[337556333,1725810651430,-500.0,0.00054794,120]
[337556334,1725810651440,-500.0,0.00054794,120]
[337556335,1725810651452,-500.0,0.00054794,120]
[337556336,1725810651463,-785.86,0.00054794,120]
[337556337,1725810651473,-176.81186051,0.00054794,120]
[337556338,1725810651483,-524.52,0.00054794,120]
[337556339,1725810651493,-500.0,0.00054794,30]
[337556340,1725810651503,-279.87132766,0.00054794,120]
[337556341,1725810651514,-2107.69,0.00054794,120]
[337556342,1725810651523,-500.0,0.00054794,120]
[337556343,1725810651533,-1537.54,0.00054794,120]
[337556344,1725810651542,-10879.96,0.00054794,120]
[337556345,1725810651554,-1342.13,0.00054794,120]
[337556346,1725810651566,-1412.24,0.00054794,120]
[337556347,1725810651575,-500.0,0.00054794,120]
[337556348,1725810651584,-531.75,0.00054794,7]
[337556349,1725810651595,-505.83141265,0.00054794,120]
[337556350,1725810651604,-500.0,0.00054794,120]
[337556351,1725810651614,-500.0,0.00054794,120]
[337556352,1725810651626,-1135.73,0.00054794,120]
[337556353,1725810651638,-286.350914,0.00054794,120]
[337556354,1725810651648,-286.350914,0.00054794,120]
[337556355,1725810651659,-500.0,0.00054794,120]
[337556356,1725810651670,-519.47,0.00054794,120]
[337556357,1725810651679,-286.350914,0.00054794,120]
[337556358,1725810651689,-500.0,0.00054794,120]
[337556359,1725810651698,-286.350914,0.00054794,120]
[337556360,1725810651708,-500.0,0.00054794,120]
[337556361,1725810651718,-504.0737863,0.00054794,120]
[337556362,1725810651729,-286.350914,0.00054794,120]
[337556363,1725810651739,-286.350914,0.00054794,120]
[337556364,1725810651749,-286.350914,0.00054794,120]
[337556365,1725810651759,-286.350914,0.00054794,120]
[337556366,1725810651769,-1115.8,0.00054794,120]
[337556367,1725810651779,-1084.38,0.00054794,120]
[337556368,1725810651789,-38538.38,0.00054794,120]
[337556369,1725810651799,-500.0,0.00054794,120]
[337556370,1725810651809,-500.0,0.00054794,120]
[337556371,1725810651820,-500.0,0.00054794,120]
[337556372,1725810651833,-500.0,0.00054794,120]
[337556373,1725810651844,-500.0,0.00054794,120]
[337556374,1725810651854,-500.0,0.00054794,120]
[337556375,1725810651864,-500.0,0.00054794,120]
[337556376,1725810651873,-500.0,0.00054794,120]
[337556377,1725810651883,-500.0,0.00054794,120]
[337556378,1725810651894,-500.0,0.00054794,120]
[337556379,1725810651903,-500.0,0.00054794,120]
[337556380,1725810651913,-500.0,0.00054794,120]
[337556381,1725810651923,-500.0,0.00054794,120]
[337556382,1725810651935,-500.0,0.00054794,120]
[337556383,1725810651944,-500.0,0.00054794,120]
[337556384,1725810651955,-1587.37,0.00054794,21]
[337556385,1725810651964,-500.0,0.00054794,120]
[337556386,1725810651975,-500.0,0.00054794,120]
[337556387,1725810651984,-456.69,0.00054794,120]
[337556388,1725810651994,-500.0,0.00054794,120]
[337556389,1725810652003,-500.0,0.00054794,120]
[337556390,1725810652013,-500.0,0.00054794,120]
[337556391,1725810652023,-500.0,0.00054794,120]
[337556392,1725810652033,-500.0,0.00054794,120]
[337556393,1725810652042,-500.87711517,0.00054794,120]
[337556394,1725810652051,-500.0,0.00054794,120]
[337556395,1725810652061,-500.0,0.00054794,120]
[337556396,1725810652071,-795.1,0.00054794,120]
[337556397,1725810652080,-500.0,0.00054794,120]
[337556398,1725810652089,-500.0,0.00054794,120]
[337556399,1725810652100,-500.0,0.00054794,120]
[337556400,1725810652109,-2172.45,0.00054794,120]
[337556401,1725810652119,-602.33,0.00054794,120]
[337556402,1725810652129,-1262.07,0.00054794,120]
[337556403,1725810652138,-1331.86,0.00054794,120]
[337556404,1725810652149,-500.0,0.00054794,120]
[337556405,1725810652164,-18350.37,0.00054794,120]
[337556406,1725810652173,-500.0,0.00054794,120]
[337556407,1725810652182,-500.0,0.00054794,120]
[337556408,1725810652191,-500.0,0.00054794,120]
[337556409,1725810652201,-4591.93,0.00054794,120]
[337556410,1725810652211,-951.35,0.00054794,120]
[337556411,1725810652220,-500.0,0.00054794,120]
[337556412,1725810652232,-500.0,0.00054794,120]
[337556413,1725810652242,-500.0,0.00054794,120]
[337556414,1725810652252,-500.0,0.00054794,120]
[337556415,1725810652261,-500.0,0.00054794,120]
[337556416,1725810652270,-180.36901797,0.00054794,120]
[337556417,1725810652279,-500.0,0.00054794,60]
[337556418,1725810652288,-500.0,0.00054794,120]
[337556419,1725810652300,-1411.68,0.00054794,120]
[337556420,1725810652311,-500.0,0.00054794,120]
[337556421,1725810652322,-3170.16,0.00054794,120]
[337556422,1725810652333,-1492.45,0.00054794,120]
[337556423,1725810652344,-500.0,0.00054794,120]
[337556424,1725810652357,-500.0,0.00054794,120]
[337556425,1725810652366,-487.89225779,0.00054794,120]
[337556426,1725810652376,-500.0,0.00054794,120]
[337556427,1725810652387,-500.0,0.00054794,120]
[337556428,1725810652401,-398.81473862,0.00054794,120]
[337556429,1725810652410,-500.0,0.00054794,120]
[337556430,1725810652419,-500.0,0.00054794,120]
[337556431,1725810652428,-500.0,0.00054794,120]
[337556432,1725810652437,-500.0,0.00054794,120]
[337556433,1725810652446,-500.0,0.00054794,120]
[337556434,1725810652456,-500.0,0.00054794,120]
[337556435,1725810652465,-500.0,0.00054794,120]
[337556436,1725810652474,-813.05,0.00054794,120]
[337556437,1725810652484,-1426.4,0.00054794,120]
[337556438,1725810652494,-500.0,0.00054794,120]
[337556439,1725810652504,-500.0,0.00054794,120]
[337556440,1725810652515,-911.65,0.00054794,120]
[337556441,1725810652525,-500.0,0.00054794,120]
[337556442,1725810652536,-500.0,0.00054794,120]
[337556443,1725810652549,-645.43,0.00054794,120]
[337556444,1725810652563,-8228.15,0.00054794,120]
[337556445,1725810652573,-500.0,0.00054794,120]
[337556446,1725810652582,-500.0,0.00054794,120]
[337556447,1725810652592,-2319.58,0.00054794,120]
[337556448,1725810652602,-500.0,0.00054794,120]
[337556449,1725810652612,-1350.2,0.00054794,120]
[337556450,1725810652621,-500.0,0.00054794,120]
[337556451,1725810652632,-6450.45,0.00054794,120]
[337556452,1725810652642,-500.0,0.00054794,120]
[337556453,1725810652652,-500.0,0.00054794,120]
[337556454,1725810652662,-500.0,0.00054794,120]
[337556455,1725810652671,-198.688948,0.00054794,2]
[337556456,1725810652681,-500.0,0.00054794,120]
[337556457,1725810652691,-1000.0,0.00054794,120]
[337556458,1725810652702,-500.0,0.00054794,120]
[337556459,1725810652714,-500.0,0.00054794,120]
[337556460,1725810652725,-500.0,0.00054794,120]
[337556461,1725810652735,-954.11,0.00054794,120]
[337556462,1725810652744,-500.0,0.00054794,2]
[337556463,1725810652755,-7422.87,0.00054794,120]
[337556464,1725810652765,-1021.28,0.00054794,120]
[337556465,1725810652775,-500.0,0.00054794,120]
[337556466,1725810652784,-500.0,0.00054794,120]
[337556467,1725810652793,-500.0,0.00054794,120]
[337556468,1725810652803,-500.0,0.00054794,120]
[337556469,1725810652813,-559.9,0.00054794,120]
[337556470,1725810652823,-500.0,0.00054794,120]
[337556471,1725810652832,-510.46,0.00054794,120]
[337556472,1725810652841,-215.10891778,0.00054794,120]
[337556473,1725810652851,-1268.94,0.00054794,120]
[337556474,1725810652860,-500.0,0.00054794,120]
[337556475,1725810652869,-906.28,0.00054794,120]
[337556476,1725810652879,-500.0,0.00054794,120]
[337556477,1725810652888,-500.0,0.00054794,120]
[337556478,1725810652897,-500.0,0.00054794,120]
[337556479,1725810652906,-666.22,0.00054794,120]
[337556480,1725810652916,-500.0,0.00054794,120]
[337556481,1725810652926,-1240.7,0.00054794,120]
[337556482,1725810652935,-500.0,0.00054794,120]
[337556483,1725810652945,-500.0,0.00054794,120]
[337556484,1725810652954,-500.0,0.00054794,120]
[337556485,1725810652965,-500.0,0.00055,120]
[337556486,1725810652975,-4443.67302771,0.00055,120]
[337556487,1725810652985,-300.0,0.00055,120]
[337556488,1725810652994,-446.0,0.00055,120]
[337556489,1725810653003,-400.0,0.00055,120]
[337556490,1725810653013,-400.0,0.00055,120]
[337556491,1725810653022,-300.0,0.00055,120]
[337556492,1725810653032,-200.959998,0.00055,120]
[337556493,1725810653042,-200.959998,0.00055,120]
[337556494,1725810653052,-208.074324,0.00055,120]
[337556495,1725810653063,-151.0,0.00055342,120]
[337556496,1725810653073,-151.0,0.00055342,120]
[337556497,1725810653082,-500.0,0.00055342,120]
[337556498,1725810653091,-500.0,0.00055342,120]
[337556499,1725810653101,-500.0,0.00055342,120]
[337556500,1725810653111,-500.0,0.00055342,120]
[337556501,1725810653122,-200.0,0.00055342,7]
[337556502,1725810653133,-500.0,0.00055342,120]
[337556503,1725810653145,-500.0,0.00055342,120]
[337556504,1725810653154,-508.02956426,0.00055342,120]
[337556505,1725810653164,-500.0,0.00055342,120]
[337556506,1725810653174,-500.0,0.00055342,120]
[337556507,1725810653183,-500.0,0.00055342,120]
[337556508,1725810653193,-500.0,0.00055342,120]
[337556509,1725810653203,-829.66,0.00055342,120]
[337556510,1725810653211,-621.6551167,0.00055342,120]
[337556511,1725810653221,-761.02,0.00055342,120]
[337556512,1725810653232,-1234.63,0.00055342,120]
[337556513,1725810653242,-500.0,0.00055342,120]
[337556514,1725810653251,-500.0,0.00055342,120]
[337556515,1725810653264,-500.0,0.00055342,120]
[337556516,1725810653274,-500.0,0.00055342,120]
[337556517,1725810653283,-500.0,0.00055342,120]
[337556518,1725810653293,-500.0,0.00055342,120]
[337556519,1725810653303,-500.0,0.00055342,120]
[337556520,1725810653313,-500.0,0.00055342,120]
[337556521,1725810653323,-514.17402109,0.00055342,120]
[337556522,1725810653332,-740.96,0.00055342,120]
[337556523,1725810653345,-500.0,0.00055342,120]
[337556524,1725810653357,-500.0,0.00055342,120]
[337556525,1725810653367,-706.78,0.00055342,120]
[337556526,1725810653378,-500.0,0.00055342,120]
[337556527,1725810653388,-500.0,0.00055342,120]
[337556528,1725810653398,-500.0,0.00055342,120]
[337556529,1725810653407,-500.0,0.00055342,120]
[337556530,1725810653417,-520.78,0.00055342,120]
[337556531,1725810653429,-1551.53,0.00055342,120]
[337556532,1725810653440,-4494.21,0.00055342,120]
[337556533,1725810653452,-500.0,0.00055342,120]
[337556534,1725810653472,-500.0,0.00055342,120]
[337556535,1725810653483,-623.08,0.00055342,120]
[337556536,1725810653494,-500.0,0.00055342,120]
[337556537,1725810653505,-1103.4,0.00055342,120]
[337556538,1725810653515,-500.0,0.00055342,120]
[337556539,1725810653525,-500.0,0.00055342,120]
[337556540,1725810653537,-500.0,0.00055342,30]
[337556541,1725810653548,-500.0,0.00055342,120]
[337556542,1725810653563,-500.0,0.00055342,120]
[337556543,1725810653573,-1955.78,0.00055342,120]
[337556544,1725810653583,-737.6,0.00055342,120]
[337556545,1725810653593,-993.01,0.00055342,120]
[337556546,1725810653602,-293.09656812,0.00055342,120]
[337556547,1725810653611,-500.0,0.00055342,120]
[337556548,1725810653620,-500.0,0.00055342,120]
[337556549,1725810653630,-500.0,0.00055342,120]
[337556550,1725810653640,-500.0,0.00055342,120]
[337556551,1725810653650,-659.54,0.00055342,120]
[337556552,1725810653659,-500.0,0.00055342,120]
[337556553,1725810653669,-500.0,0.00055342,120]
[337556554,1725810653678,-500.0,0.00055342,120]
[337556555,1725810653689,-500.0,0.00055342,120]
[337556556,1725810653699,-603.22,0.00055342,120]
[337556557,1725810653708,-500.0,0.00055342,120]
[337556558,1725810653718,-500.0,0.00055342,120]
[337556559,1725810653727,-500.0,0.00055342,120]
[337556560,1725810653736,-500.0,0.00055342,120]
[337556561,1725810653746,-500.0,0.00055342,120]
[337556562,1725810653756,-500.0,0.00055342,120]
[337556563,1725810653765,-500.0,0.00055342,120]
[337556564,1725810653776,-500.0,0.00055342,120]
[337556565,1725810653786,-500.0,0.00055342,120]
[337556566,1725810653796,-200.959998,0.00055342,120]
[337556567,1725810653806,-200.959998,0.00055342,120]
[337556568,1725810653817,-537.14,0.00055342,120]
[337556569,1725810653829,-930.48,0.00055342,120]
[337556570,1725810653839,-560.16,0.00055342,120]
[337556571,1725810653849,-200.959998,0.00055342,120]
[337556572,1725810653861,-200.959998,0.00055342,120]
[337556573,1725810653872,-500.0,0.00055342,120]
[337556574,1725810653882,-500.0,0.00055342,120]
[337556575,1725810653891,-500.0,0.00055342,120]
[337556576,1725810653901,-490.15754159,0.00055342,120]
[337556577,1725810653910,-500.0,0.00055342,120]
[337556578,1725810653919,-500.0,0.00055342,120]
[337556579,1725810653928,-500.0,0.00055342,120]
[337556580,1725810653937,-953.87,0.00055342,120]
[337556581,1725810653947,-754.23,0.00055342,30]
[337556582,1725810653958,-500.0,0.00055342,120]
[337556583,1725810653968,-692.34,0.00055342,120]
[337556584,1725810653977,-500.0,0.00055342,120]
[337556585,1725810653986,-500.0,0.00055342,120]
[337556586,1725810653996,-500.0,0.00055342,120]
[337556587,1725810654005,-500.0,0.00055342,120]
[337556588,1725810654014,-500.0,0.00055342,120]
[337556589,1725810654023,-500.0,0.00055342,120]
[337556590,1725810654033,-500.0,0.00055342,120]
[337556591,1725810654044,-500.0,0.00055342,120]
[337556592,1725810654054,-500.0,0.00055342,120]
[337556593,1725810654065,-500.0,0.00055342,120]
[337556594,1725810654075,-567.87,0.00055342,120]
[337556595,1725810654085,-500.0,0.00055342,120]
[337556596,1725810654094,-500.0,0.00055342,120]
[337556597,1725810654103,-518.70270092,0.00055342,120]
[337556598,1725810654112,-500.0,0.00055342,120]
[337556599,1725810654122,-500.0,0.00055342,120]
[337556600,1725810654133,-500.0,0.00055342,120]
[337556601,1725810654142,-500.0,0.00055342,120]
[337556602,1725810654152,-500.0,0.00055342,120]
[337556603,1725810654330,-500.0,0.00055342,120]
[337556604,1725810654340,-500.0,0.00055342,120]
[337556605,1725810654349,-188.54580506,0.00055342,120]
[337556606,1725810654358,-500.0,0.00055342,120]
[337556607,1725810654368,-500.0,0.00055342,120]
[337556608,1725810654377,-500.0,0.00055342,120]
[337556609,1725810654387,-500.0,0.00055342,120]
[337556610,1725810654397,-500.0,0.00055342,120]
[337556611,1725810654406,-500.0,0.00055342,2]
[337556612,1725810654416,-500.0,0.00055342,120]
[337556613,1725810654426,-500.0,0.00055342,120]
[337556614,1725810654436,-500.0,0.00055342,120]
[337556615,1725810654445,-500.0,0.00055342,120]
[337556616,1725810654456,-500.0,0.00055342,120]
[337556617,1725810654467,-194.622411,0.00055342,120]
[337556618,1725810654478,-194.622411,0.00055342,120]
[337556619,1725810654489,-616.08,0.00055342,120]
[337556620,1725810654501,-233.35544981,0.00055342,120]
[337556621,1725810654512,-826.36,0.00055342,120]
[337556622,1725810654522,-194.622411,0.00055342,120]
[337556623,1725810654532,-194.622411,0.00055342,120]
[337556624,1725810654542,-636.04536198,0.00055342,120]
[337556625,1725810654555,-500.0,0.00055342,120]
[337556626,1725810654566,-500.0,0.00055342,120]
[337556627,1725810654575,-593.8,0.00055342,120]
[337556628,1725810654585,-591.23,0.00055342,120]
[337556629,1725810654594,-500.0,0.00055342,120]
[337556630,1725810654603,-690.09,0.00055342,120]
[337556631,1725810654613,-181.2994255,0.00055342,120]
[337556632,1725810654623,-316.1829415,0.00055342,120]
[337556633,1725810654634,-504.03105899,0.00055342,120]
[337556634,1725810654643,-500.0,0.00055342,120]
[337556635,1725810654653,-500.0,0.00055342,120]
[337556636,1725810654663,-500.0,0.00055342,120]
[337556637,1725810654672,-500.0,0.00055342,120]
[337556638,1725810654681,-500.0,0.00055342,120]
[337556639,1725810654691,-500.0,0.00055342,120]
[337556640,1725810654700,-500.0,0.00055342,120]
[337556641,1725810654710,-500.0,0.00055342,120]
[337556642,1725810654720,-500.0,0.00055342,7]
[337556643,1725810654731,-500.0,0.00055342,120]
[337556644,1725810654740,-500.0,0.00055342,120]
[337556645,1725810654756,-500.0,0.00055342,120]
[337556646,1725810654766,-500.0,0.00055342,120]
[337556647,1725810654776,-500.0,0.00055342,120]
[337556648,1725810654785,-500.0,0.00055342,120]
[337556649,1725810654795,-504.81427983,0.00055342,120]
[337556650,1725810654806,-1232.34,0.00055342,120]
[337556651,1725810654817,-500.0,0.00055342,120]
[337556652,1725810654827,-500.0,0.00055342,120]
[337556653,1725810654837,-500.0,0.00055342,30]
[337556654,1725810654847,-500.0,0.00055342,120]
[337556655,1725810654857,-500.0,0.00055342,120]
[337556656,1725810654867,-151.0,0.00055342,120]
[337556657,1725810654878,-151.0,0.00055342,120]
[337556658,1725810654888,-500.0,0.00055342,120]
[337556659,1725810654900,-151.0,0.00055342,120]
[337556660,1725810654912,-500.0,0.00055342,120]
[337556661,1725810654922,-151.0,0.00055342,120]
[337556662,1725810654933,-500.0,0.00055342,120]
[337556663,1725810654944,-151.0,0.00055342,120]
[337556664,1725810654955,-151.0,0.00055342,120]
[337556665,1725810654964,-500.0,0.00055342,120]
[337556666,1725810654975,-2085.98,0.00055342,120]
[337556667,1725810654986,-6797.82,0.00055342,120]
[337556668,1725810654996,-500.0,0.00055342,120]
[337556669,1725810655007,-500.0,0.00055342,120]
[337556670,1725810655017,-500.0,0.00055342,120]
[337556671,1725810655027,-500.0,0.00055342,120]
[337556672,1725810655037,-500.0,0.00055342,120]
[337556673,1725810655048,-500.0,0.00055342,120]
[337556674,1725810655058,-2111.06,0.00055342,120]
[337556675,1725810655068,-151.0,0.00055342,120]
[337556676,1725810655077,-151.0,0.00055342,120]
[337556677,1725810655087,-151.0,0.00055342,120]
[337556678,1725810655097,-500.0,0.00055342,120]
[337556679,1725810655107,-500.0,0.00055342,120]
[337556680,1725810655117,-500.0,0.00055342,120]
[337556681,1725810655128,-500.0,0.00055342,120]
[337556682,1725810655137,-1216.09,0.00055342,120]
[337556683,1725810655148,-500.0,0.00055342,120]
[337556684,1725810655159,-500.0,0.00055342,120]
[337556685,1725810655169,-2627.43,0.00055342,120]
[337556686,1725810655180,-500.0,0.00055342,120]
[337556687,1725810655189,-506.40771006,0.00055342,120]
[337556688,1725810655205,-500.0,0.00055342,120]
[337556689,1725810655217,-507.59723379,0.00055342,120]
[337556690,1725810655227,-500.0,0.00055342,120]
[337556691,1725810655237,-500.0,0.00055342,120]
[337556692,1725810655247,-502.56,0.00055342,120]
[337556693,1725810655257,-500.0,0.00055342,120]
[337556694,1725810655266,-500.0,0.00055342,120]
[337556695,1725810655276,-565.34,0.00055342,120]
[337556696,1725810655286,-503.99080466,0.00055342,120]
[337556697,1725810655296,-500.0,0.00055342,120]
[337556698,1725810655306,-500.0,0.00055342,120]
[337556699,1725810655316,-500.0,0.00055342,120]
[337556700,1725810655326,-500.0,0.00055342,120]
[337556701,1725810655337,-817.73,0.00055342,120]
[337556702,1725810655346,-500.0,0.00055342,120]
[337556703,1725810655356,-644.76,0.00055342,120]
[337556704,1725810655366,-437.08156948,0.00055342,120]
[337556705,1725810655377,-1057.61,0.00055342,120]
[337556706,1725810655386,-500.0,0.00055342,120]
[337556707,1725810655397,-510.4317757,0.00055342,120]
[337556708,1725810655417,-500.0,0.00055342,120]
[337556709,1725810655427,-500.0,0.00055342,120]
[337556710,1725810655437,-617.50000002,0.00055342,120]
[337556711,1725810655448,-500.0,0.00055342,120]
[337556712,1725810655457,-500.0,0.00055342,120]
[337556713,1725810655467,-500.0,0.00055342,120]
[337556714,1725810655478,-200.0,0.00055342,120]
[337556715,1725810655489,-500.0,0.00055342,120]
[337556716,1725810655499,-803.08,0.00055342,120]
[337556717,1725810655510,-560.18,0.00055342,120]
[337556718,1725810655520,-500.0,0.00055342,120]
[337556719,1725810655530,-1363.54,0.00055342,120]
[337556720,1725810655541,-970.22,0.00055342,120]
[337556721,1725810655553,-999.0,0.00055342,120]
[337556722,1725810655564,-500.0,0.00055342,120]
[337556723,1725810655573,-500.0,0.00055342,120]
[337556724,1725810655583,-543.05,0.00055342,120]
[337556725,1725810655595,-151.0,0.00055342,120]
[337556726,1725810655605,-236.27109718,0.00055342,120]
[337556727,1725810655615,-151.0,0.00055342,120]
[337556728,1725810655626,-500.0,0.00055342,120]
[337556729,1725810655636,-523.46,0.00055342,120]
[337556730,1725810655646,-500.0,0.00055342,120]
[337556731,1725810655657,-298.454548,0.00055342,120]
[337556732,1725810655667,-1539.57,0.00055342,120]
[337556733,1725810655677,-500.0,0.00055342,120]
[337556734,1725810655687,-500.0,0.00055342,120]
[337556735,1725810655696,-517.71,0.00055342,2]
[337556736,1725810655706,-500.0,0.00055342,120]
[337556737,1725810655717,-500.0,0.00055342,120]
[337556738,1725810655726,-500.0,0.00055342,120]
[337556739,1725810655737,-505.18,0.00055342,120]
[337556740,1725810655747,-500.0,0.00055342,120]
[337556741,1725810655757,-255.441736,0.00055342,120]
[337556742,1725810655767,-255.441736,0.00055342,120]
[337556743,1725810655777,-255.441736,0.00055342,120]
[337556744,1725810655787,-500.0,0.00055342,120]
[337556745,1725810655797,-500.0,0.00055342,120]
[337556746,1725810655807,-255.441736,0.00055342,120]
[337556747,1725810655820,-255.441736,0.00055342,120]
[337556748,1725810655829,-255.441736,0.00055342,120]
[337556749,1725810655840,-500.0,0.00055342,120]
[337556750,1725810655852,-500.0,0.00055342,120]
[337556751,1725810655863,-581.38,0.00055342,120]
[337556752,1725810655874,-3983.66,0.00055342,120]
[337556753,1725810655884,-847.06,0.00055342,120]
[337556754,1725810655895,-847.76,0.00055342,30]
[337556755,1725810655907,-500.0,0.00055342,120]
[337556756,1725810655917,-500.0,0.00055342,120]
[337556757,1725810655928,-500.0,0.00055342,120]
[337556758,1725810655938,-1009.48,0.00055342,120]
[337556759,1725810655947,-151.0,0.00055342,120]
[337556760,1725810655957,-1093.08,0.00055342,120]
[337556761,1725810655967,-3225.59,0.00055342,120]
[337556762,1725810655976,-1047.16,0.00055342,120]
[337556763,1725810655986,-151.0,0.00055342,120]
[337556764,1725810655996,-151.0,0.00055342,120]
[337556765,1725810656007,-500.0,0.00055342,120]
[337556766,1725810656017,-801.67,0.00055342,120]
[337556767,1725810656027,-500.0,0.00055342,120]
[337556768,1725810656037,-500.0,0.00055342,120]
[337556769,1725810656046,-1420.25,0.00055342,120]
[337556770,1725810656056,-500.0,0.00055342,120]
[337556771,1725810656066,-617.96,0.00055342,120]
[337556772,1725810656077,-500.0,0.00055342,120]
[337556773,1725810656088,-5403.1,0.00055342,120]
[337556774,1725810656099,-1046.2,0.00055342,120]
[337556775,1725810656109,-713.11,0.00055342,120]
[337556776,1725810656119,-500.0,0.00055342,120]
[337556777,1725810656129,-496.60814027,0.00055342,120]
[337556778,1725810656138,-785.86,0.00055342,120]
[337556779,1725810656148,-524.52,0.00055342,120]
[337556780,1725810656159,-500.0,0.00055342,30]
[337556781,1725810656169,-2107.69,0.00055342,120]
[337556782,1725810656179,-500.0,0.00055342,120]
[337556783,1725810656189,-1537.54,0.00055342,120]
[337556784,1725810656198,-10879.96,0.00055342,120]